[Event "Titled Tuesday Blitz August 22 Late 2023"]
[White "Matinian, Nikita"]
[Black "Svane, Rasmus"]
[WhiteFideId "24129100"]
[BlackFideId "4657101"]
[WhiteElo "2720"]
[BlackElo "2979"]
[Result "0-1"]
[Round "8"]
[TimeControl "180+1"]
[Date "2023.08.22"]
[WhiteClock "0:00:00"]
[BlackClock "0:00:29"]
[Board "19"]

1. e4 {[%clk 0:03:00]}  c6 {[%clk 0:02:59]} 2. d4 {[%clk 0:03:01]}  d5 {[%clk 0:03:00]} 3. e5 {[%clk 0:03:02]}  Bf5 {[%clk 0:02:59]} 4. Nf3 {[%clk 0:03:03]}  e6 {[%clk 0:02:59]} 5. Be2 {[%clk 0:03:03]}  Ne7 {[%clk 0:02:59]} 6. O-O {[%clk 0:03:04]}  Ng6 {[%clk 0:03:00]} 7. Be3 {[%clk 0:02:45]}  Nd7 {[%clk 0:02:56]} 8. Ne1 {[%clk 0:02:42]}  h5 {[%clk 0:02:56]} 9. Nd2 {[%clk 0:02:39]}  Ndxe5 {[%clk 0:02:56]} 10. dxe5 {[%clk 0:02:24]}  d4 {[%clk 0:02:57]} 11. Bxd4 {[%clk 0:02:21]}  Qxd4 {[%clk 0:02:58]} 12. Nef3 {[%clk 0:02:22]}  Qc5 {[%clk 0:02:29]} 13. Nc4 {[%clk 0:02:04]}  Rd8 {[%clk 0:02:27]} 14. Qc1 {[%clk 0:01:59]}  Be7 {[%clk 0:02:26]} 15. a4 {[%clk 0:01:53]}  Bg4 {[%clk 0:02:18]} 16. Qe3 {[%clk 0:01:30]}  Qxe3 {[%clk 0:02:03]} 17. fxe3 {[%clk 0:01:31]}  O-O {[%clk 0:01:27]} 18. h3 {[%clk 0:01:31]}  Bf5 {[%clk 0:01:26]} 19. Nd4 {[%clk 0:01:30]}  Be4 {[%clk 0:01:15]} 20. Bxh5 {[%clk 0:01:29]}  Bc5 {[%clk 0:01:16]} 21. Bf3 {[%clk 0:00:54]}  Bxd4 {[%clk 0:01:11]} 22. Bxe4 {[%clk 0:00:51]}  Nxe5 {[%clk 0:01:11]} 23. exd4 {[%clk 0:00:24]}  Nxc4 {[%clk 0:01:10]} 24. c3 {[%clk 0:00:18]}  Nxb2 {[%clk 0:01:05]} 25. Rfb1 {[%clk 0:00:18]}  Nc4 {[%clk 0:01:05]} 26. Rxb7 {[%clk 0:00:18]}  Nd6 {[%clk 0:01:06]} 27. Bxc6 {[%clk 0:00:18]}  Rc8 {[%clk 0:01:03]} 28. Rxa7 {[%clk 0:00:08]}  Rxc6 {[%clk 0:01:03]} 29. Ra3 {[%clk 0:00:07]}  Rfc8 {[%clk 0:01:03]} 30. Rd7 {[%clk 0:00:03]}  Nc4 {[%clk 0:01:00]} 31. Ra2 {[%clk 0:00:03]}  Nb6 {[%clk 0:00:57]} 32. Rb7 {[%clk 0:00:03]}  Nd5 {[%clk 0:00:56]} 33. a5 {[%clk 0:00:03]}  Nxc3 {[%clk 0:00:50]} 34. Rf2 {[%clk 0:00:02]}  f6 {[%clk 0:00:31]} 35. Rfb2 {[%clk 0:00:00]}  Nd5 {[%clk 0:00:29]} 0-1


[Site "https://www.chess.com"]

[Event "Titled Tuesday Blitz August 22 Late 2023"]
[White "Papasimakopoulos, Alexandros"]
[Black "Zhigalko, Sergei"]
[WhiteFideId "4244125"]
[BlackFideId "13502956"]
[WhiteElo "2710"]
[BlackElo "2954"]
[Result "0-1"]
[Round "8"]
[TimeControl "180+1"]
[Date "2023.08.22"]
[WhiteClock "0:00:19"]
[BlackClock "0:00:04"]
[Board "20"]

1. Nf3 {[%clk 0:03:00]}  d5 {[%clk 0:02:58]} 2. e3 {[%clk 0:03:01]}  Nf6 {[%clk 0:02:57]} 3. b3 {[%clk 0:03:01]}  e6 {[%clk 0:02:57]} 4. Bb2 {[%clk 0:03:01]}  Bd6 {[%clk 0:02:58]} 5. Be2 {[%clk 0:03:01]}  O-O {[%clk 0:02:58]} 6. O-O {[%clk 0:03:01]}  b6 {[%clk 0:02:58]} 7. c4 {[%clk 0:03:01]}  Bb7 {[%clk 0:02:58]} 8. d4 {[%clk 0:03:01]}  Nbd7 {[%clk 0:02:59]} 9. Nc3 {[%clk 0:03:00]}  a6 {[%clk 0:02:58]} 10. Qc2 {[%clk 0:02:52]}  Qe7 {[%clk 0:02:53]} 11. Rfd1 {[%clk 0:02:51]}  Rfe8 {[%clk 0:02:33]} 12. Rac1 {[%clk 0:02:51]}  Rad8 {[%clk 0:02:33]} 13. Na4 {[%clk 0:02:48]}  Ne4 {[%clk 0:02:29]} 14. Ne5 {[%clk 0:02:27]}  c5 {[%clk 0:01:39]} 15. Bd3 {[%clk 0:02:15]}  Bxe5 {[%clk 0:01:07]} 16. dxe5 {[%clk 0:02:16]}  f5 {[%clk 0:00:29]} 17. exf6 {[%clk 0:02:16]}  Nexf6 {[%clk 0:00:29]} 18. Nc3 {[%clk 0:02:06]}  d4 {[%clk 0:00:24]} 19. exd4 {[%clk 0:02:04]}  cxd4 {[%clk 0:00:24]} 20. Ne4 {[%clk 0:02:03]}  e5 {[%clk 0:00:22]} 21. Re1 {[%clk 0:01:54]}  Nxe4 {[%clk 0:00:15]} 22. Bxe4 {[%clk 0:01:55]}  Bxe4 {[%clk 0:00:15]} 23. Qxe4 {[%clk 0:01:56]}  Nc5 {[%clk 0:00:15]} 24. Qe2 {[%clk 0:01:49]}  Qg5 {[%clk 0:00:14]} 25. Rcd1 {[%clk 0:01:42]}  a5 {[%clk 0:00:14]} 26. Bc1 {[%clk 0:01:39]}  Qg6 {[%clk 0:00:15]} 27. Bb2 {[%clk 0:01:36]}  h6 {[%clk 0:00:13]} 28. h3 {[%clk 0:01:35]}  Re6 {[%clk 0:00:12]} 29. Qg4 {[%clk 0:01:35]}  Qf7 {[%clk 0:00:11]} 30. Qg3 {[%clk 0:01:24]}  Rf8 {[%clk 0:00:09]} 31. Rd2 {[%clk 0:01:19]}  Qf5 {[%clk 0:00:07]} 32. f3 {[%clk 0:01:13]}  Kh7 {[%clk 0:00:04]} 33. Qg4 {[%clk 0:01:11]}  Qf7 {[%clk 0:00:04]} 34. Rde2 {[%clk 0:01:07]}  Rg6 {[%clk 0:00:04]} 35. Qh4 {[%clk 0:00:55]}  Qxf3 {[%clk 0:00:04]} 36. Kh1 {[%clk 0:00:52]}  Qc6 {[%clk 0:00:04]} 37. Ba3 {[%clk 0:00:38]}  Rf4 {[%clk 0:00:04]} 38. Qh5 {[%clk 0:00:37]}  Ne4 {[%clk 0:00:04]} 39. Kh2 {[%clk 0:00:33]}  Ng3 {[%clk 0:00:04]} 40. Qxe5 {[%clk 0:00:33]}  Nxe2 {[%clk 0:00:04]} 41. Rxe2 {[%clk 0:00:32]}  Qf6 {[%clk 0:00:03]} 42. Qxf6 {[%clk 0:00:20]}  Rgxf6 {[%clk 0:00:03]} 43. Rd2 {[%clk 0:00:19]}  Rf2 {[%clk 0:00:03]} 44. Rxd4 {[%clk 0:00:20]}  Rg6 {[%clk 0:00:03]} 45. Rg4 {[%clk 0:00:18]}  Rxg4 {[%clk 0:00:03]} 46. hxg4 {[%clk 0:00:19]}  Rxa2 {[%clk 0:00:04]} 47. Bd6 {[%clk 0:00:20]}  Rb2 {[%clk 0:00:04]} 48. c5 {[%clk 0:00:20]}  bxc5 {[%clk 0:00:04]} 49. Be5 {[%clk 0:00:19]}  Rxb3 {[%clk 0:00:04]} 0-1


[Site "https://www.chess.com"]

[Event "Titled Tuesday Blitz August 22 Late 2023"]
[White "Mamedov, Edgar"]
[Black "Makarian, Rudik"]
[WhiteFideId "13739980"]
[BlackFideId "44105681"]
[WhiteElo "2686"]
[BlackElo "2913"]
[Result "0-1"]
[Round "8"]
[TimeControl "180+1"]
[Date "2023.08.22"]
[WhiteClock "0:00:06"]
[BlackClock "0:01:11"]
[Board "22"]

1. d4 {[%clk 0:02:59]}  Nf6 {[%clk 0:03:00]} 2. Nf3 {[%clk 0:02:58]}  c5 {[%clk 0:03:00]} 3. d5 {[%clk 0:02:57]}  b5 {[%clk 0:03:00]} 4. Bg5 {[%clk 0:02:52]}  g6 {[%clk 0:03:00]} 5. Bxf6 {[%clk 0:02:51]}  exf6 {[%clk 0:03:01]} 6. e3 {[%clk 0:02:50]}  b4 {[%clk 0:03:01]} 7. Bc4 {[%clk 0:02:49]}  Bg7 {[%clk 0:03:02]} 8. O-O {[%clk 0:02:48]}  O-O {[%clk 0:03:02]} 9. a4 {[%clk 0:02:44]}  f5 {[%clk 0:03:02]} 10. Ra2 {[%clk 0:02:41]}  d6 {[%clk 0:03:02]} 11. c3 {[%clk 0:02:39]}  Nd7 {[%clk 0:02:50]} 12. a5 {[%clk 0:02:37]}  Rb8 {[%clk 0:02:49]} 13. Qa4 {[%clk 0:02:35]}  Ne5 {[%clk 0:02:44]} 14. Nxe5 {[%clk 0:02:34]}  Bxe5 {[%clk 0:02:45]} 15. Bb5 {[%clk 0:02:22]}  a6 {[%clk 0:02:35]} 16. Be2 {[%clk 0:02:14]}  f4 {[%clk 0:02:20]} 17. exf4 {[%clk 0:02:10]}  Bxf4 {[%clk 0:02:21]} 18. g3 {[%clk 0:02:07]}  Be5 {[%clk 0:02:21]} 19. Bf3 {[%clk 0:02:03]}  Bd7 {[%clk 0:02:09]} 20. Qd1 {[%clk 0:01:54]}  Qf6 {[%clk 0:02:09]} 21. Nd2 {[%clk 0:01:50]}  Bf5 {[%clk 0:02:03]} 22. Nc4 {[%clk 0:01:43]}  bxc3 {[%clk 0:02:02]} 23. bxc3 {[%clk 0:01:42]}  Bxc3 {[%clk 0:02:02]} 24. Bg4 {[%clk 0:01:13]}  Rb1 {[%clk 0:01:50]} 25. Qf3 {[%clk 0:01:03]}  Rxf1+ {[%clk 0:01:34]} 26. Kxf1 {[%clk 0:00:59]}  Qd4 {[%clk 0:01:35]} 27. Ne3 {[%clk 0:00:44]}  Bb1 {[%clk 0:01:33]} 28. Ra3 {[%clk 0:00:37]}  Bb2 {[%clk 0:01:28]} 29. Rb3 {[%clk 0:00:35]}  c4 {[%clk 0:01:26]} 30. Rb7 {[%clk 0:00:23]}  Bd3+ {[%clk 0:01:20]} 31. Kg1 {[%clk 0:00:23]}  Bc1 {[%clk 0:01:17]} 32. Bd7 {[%clk 0:00:16]}  Bxe3 {[%clk 0:01:15]} 33. fxe3 {[%clk 0:00:15]}  Qa1+ {[%clk 0:01:14]} 34. Kg2 {[%clk 0:00:14]}  Qe5 {[%clk 0:01:12]} 35. Rc7 {[%clk 0:00:06]}  Be4 {[%clk 0:01:11]} 0-1


[Site "https://www.chess.com"]

[Event "Titled Tuesday Blitz August 22 Late 2023"]
[White "Ibarra Jerez, Jose Carlos"]
[Black "Tatarinov, Dmitry"]
[WhiteFideId "2226332"]
[BlackFideId "24160067"]
[WhiteElo "2895"]
[BlackElo "2685"]
[Result "0-1"]
[Round "8"]
[TimeControl "180+1"]
[Date "2023.08.22"]
[WhiteClock "0:00:34"]
[BlackClock "0:01:29"]
[Board "23"]

1. Nf3 {[%clk 0:03:00]}  d5 {[%clk 0:02:59]} 2. g3 {[%clk 0:03:01]}  Nd7 {[%clk 0:02:56]} 3. d4 {[%clk 0:03:00]}  Nb6 {[%clk 0:02:55]} 4. a4 {[%clk 0:02:59]}  a5 {[%clk 0:02:54]} 5. Nc3 {[%clk 0:02:59]}  Nf6 {[%clk 0:02:53]} 6. Bg2 {[%clk 0:02:59]}  h6 {[%clk 0:02:54]} 7. Ne5 {[%clk 0:02:57]}  Bf5 {[%clk 0:02:51]} 8. O-O {[%clk 0:02:58]}  e6 {[%clk 0:02:51]} 9. f3 {[%clk 0:02:46]}  Bb4 {[%clk 0:02:49]} 10. e4 {[%clk 0:02:42]}  Bh7 {[%clk 0:02:50]} 11. exd5 {[%clk 0:02:31]}  exd5 {[%clk 0:02:49]} 12. Ne2 {[%clk 0:02:27]}  O-O {[%clk 0:02:47]} 13. c3 {[%clk 0:02:27]}  Bd6 {[%clk 0:02:47]} 14. Nf4 {[%clk 0:02:28]}  c6 {[%clk 0:02:47]} 15. Nfd3 {[%clk 0:02:28]}  Re8 {[%clk 0:02:46]} 16. Bf4 {[%clk 0:02:15]}  Qc7 {[%clk 0:02:43]} 17. b3 {[%clk 0:02:09]}  Nbd7 {[%clk 0:02:43]} 18. Re1 {[%clk 0:02:02]}  Bxd3 {[%clk 0:02:39]} 19. Nxd3 {[%clk 0:02:02]}  Bxf4 {[%clk 0:02:36]} 20. Nxf4 {[%clk 0:02:02]}  c5 {[%clk 0:02:29]} 21. Qd2 {[%clk 0:02:00]}  Qb6 {[%clk 0:02:23]} 22. Reb1 {[%clk 0:01:51]}  cxd4 {[%clk 0:02:21]} 23. cxd4 {[%clk 0:01:51]}  Ne5 {[%clk 0:02:21]} 24. Rd1 {[%clk 0:01:38]}  Nc6 {[%clk 0:02:21]} 25. Rab1 {[%clk 0:01:38]}  Re7 {[%clk 0:02:17]} 26. Bf1 {[%clk 0:01:38]}  Rae8 {[%clk 0:02:17]} 27. Bb5 {[%clk 0:01:38]}  g5 {[%clk 0:02:12]} 28. Ne2 {[%clk 0:01:33]}  Re3 {[%clk 0:02:06]} 29. Kf2 {[%clk 0:01:26]}  g4 {[%clk 0:02:02]} 30. Qxe3 {[%clk 0:01:20]}  Rxe3 {[%clk 0:02:03]} 31. Kxe3 {[%clk 0:01:21]}  Ne5 {[%clk 0:02:00]} 32. Ng1 {[%clk 0:01:04]}  gxf3 {[%clk 0:01:55]} 33. Nxf3 {[%clk 0:01:04]}  Neg4+ {[%clk 0:01:54]} 34. Kd2 {[%clk 0:01:01]}  Ne4+ {[%clk 0:01:53]} 35. Ke1 {[%clk 0:00:52]}  Nc3 {[%clk 0:01:49]} 36. Kd2 {[%clk 0:00:46]}  Nxb1+ {[%clk 0:01:48]} 37. Rxb1 {[%clk 0:00:46]}  Qf6 {[%clk 0:01:43]} 38. Rf1 {[%clk 0:00:46]}  Qe7 {[%clk 0:01:41]} 39. Re1 {[%clk 0:00:43]}  Qa3 {[%clk 0:01:42]} 40. Kc2 {[%clk 0:00:43]}  Qa2+ {[%clk 0:01:41]} 41. Kc3 {[%clk 0:00:42]}  Nf2 {[%clk 0:01:35]} 42. Nd2 {[%clk 0:00:37]}  Qa3 {[%clk 0:01:34]} 43. Re2 {[%clk 0:00:34]}  Qc1# {[%clk 0:01:29]} 0-1


[Site "https://www.chess.com"]

[Event "Titled Tuesday Blitz August 22 Late 2023"]
[White "Arias, Juan Cruz"]
[Black "Rasulov, Vugar"]
[WhiteFideId "118540"]
[BlackFideId "13402390"]
[WhiteElo "2682"]
[BlackElo "2892"]
[Result "1-0"]
[Round "8"]
[TimeControl "180+1"]
[Date "2023.08.22"]
[WhiteClock "0:00:06"]
[BlackClock "0:00:00"]
[Board "24"]

1. d4 {[%clk 0:03:00]}  Nf6 {[%clk 0:02:59]} 2. Nf3 {[%clk 0:03:01]}  g6 {[%clk 0:03:00]} 3. Nbd2 {[%clk 0:03:00]}  d5 {[%clk 0:02:58]} 4. e3 {[%clk 0:03:00]}  Bg7 {[%clk 0:02:58]} 5. b4 {[%clk 0:03:00]}  O-O {[%clk 0:02:58]} 6. Be2 {[%clk 0:02:59]}  Nbd7 {[%clk 0:02:56]} 7. Bb2 {[%clk 0:02:59]}  c6 {[%clk 0:02:53]} 8. O-O {[%clk 0:02:59]}  Re8 {[%clk 0:02:49]} 9. a4 {[%clk 0:02:59]}  a5 {[%clk 0:02:42]} 10. b5 {[%clk 0:02:58]}  c5 {[%clk 0:02:40]} 11. dxc5 {[%clk 0:02:51]}  Nxc5 {[%clk 0:02:41]} 12. c4 {[%clk 0:02:50]}  Bg4 {[%clk 0:02:28]} 13. h3 {[%clk 0:02:47]}  Bxf3 {[%clk 0:02:29]} 14. Nxf3 {[%clk 0:02:46]}  Rc8 {[%clk 0:02:27]} 15. Be5 {[%clk 0:02:19]}  dxc4 {[%clk 0:02:11]} 16. Bxc4 {[%clk 0:02:07]}  Nfe4 {[%clk 0:02:11]} 17. Qc2 {[%clk 0:01:56]}  e6 {[%clk 0:02:05]} 18. Rfd1 {[%clk 0:01:53]}  Qe7 {[%clk 0:02:05]} 19. Rac1 {[%clk 0:01:34]}  Ng5 {[%clk 0:01:58]} 20. Nxg5 {[%clk 0:01:33]}  Bxe5 {[%clk 0:01:51]} 21. Nf3 {[%clk 0:01:19]}  Bf6 {[%clk 0:01:51]} 22. b6 {[%clk 0:01:13]}  Red8 {[%clk 0:01:40]} 23. Bb5 {[%clk 0:01:12]}  Kg7 {[%clk 0:01:35]} 24. e4 {[%clk 0:01:02]}  e5 {[%clk 0:01:28]} 25. Qe2 {[%clk 0:01:02]}  Ne6 {[%clk 0:01:25]} 26. Rxc8 {[%clk 0:01:00]}  Rxc8 {[%clk 0:01:26]} 27. Rd7 {[%clk 0:01:00]}  Qc5 {[%clk 0:01:15]} 28. Rxb7 {[%clk 0:00:58]}  Bd8 {[%clk 0:01:04]} 29. Qa2 {[%clk 0:00:54]}  Kf6 {[%clk 0:00:42]} 30. Be8 {[%clk 0:00:46]}  Be7 {[%clk 0:00:34]} 31. Bb5 {[%clk 0:00:26]}  Rd8 {[%clk 0:00:24]} 32. g3 {[%clk 0:00:22]}  h5 {[%clk 0:00:21]} 33. Kg2 {[%clk 0:00:17]}  Rd6 {[%clk 0:00:15]} 34. Qb2 {[%clk 0:00:14]}  Nd4 {[%clk 0:00:06]} 35. Nxd4 {[%clk 0:00:12]}  Rxd4 {[%clk 0:00:07]} 36. Qe2 {[%clk 0:00:11]}  Kg7 {[%clk 0:00:04]} 37. Qf3 {[%clk 0:00:11]}  Rd2 {[%clk 0:00:02]} 38. Be8 {[%clk 0:00:11]}  f6 {[%clk 0:00:02]} 39. Rc7 {[%clk 0:00:08]}  Qd6 {[%clk 0:00:02]} 40. Rd7 {[%clk 0:00:07]}  Qb4 {[%clk 0:00:02]} 41. b7 {[%clk 0:00:07]}  Rxd7 {[%clk 0:00:02]} 42. Bxd7 {[%clk 0:00:08]}  Qxb7 {[%clk 0:00:03]} 43. Bb5 {[%clk 0:00:08]}  Qc7 {[%clk 0:00:03]} 44. Qd3 {[%clk 0:00:07]}  Bc5 {[%clk 0:00:03]} 45. Qd5 {[%clk 0:00:08]}  Bd4 {[%clk 0:00:03]} 46. Bc4 {[%clk 0:00:08]}  Qc8 {[%clk 0:00:03]} 47. Qf7+ {[%clk 0:00:08]}  Kh6 {[%clk 0:00:03]} 48. Qxf6 {[%clk 0:00:07]}  Qe8 {[%clk 0:00:02]} 49. Bf7 {[%clk 0:00:06]}  Qc6 {[%clk 0:00:00]} 50. Qxc6 {[%clk 0:00:06]} 1-0


[Site "https://www.chess.com"]

[Event "Titled Tuesday Blitz August 22 Late 2023"]
[White "Zarubitski, Viachaslau"]
[Black "Diaz Camallonga, Carles"]
[WhiteFideId "13509373"]
[BlackFideId "22235256"]
[WhiteElo "2646"]
[BlackElo "2807"]
[Result "0-1"]
[Round "8"]
[TimeControl "180+1"]
[Date "2023.08.22"]
[WhiteClock "0:00:00"]
[BlackClock "0:00:02"]
[Board "27"]

1. e4 {[%clk 0:03:00]}  e6 {[%clk 0:02:58]} 2. d3 {[%clk 0:02:56]}  c5 {[%clk 0:02:57]} 3. Nf3 {[%clk 0:02:56]}  Nc6 {[%clk 0:02:57]} 4. g3 {[%clk 0:02:57]}  g6 {[%clk 0:02:58]} 5. Bg2 {[%clk 0:02:57]}  Bg7 {[%clk 0:02:58]} 6. O-O {[%clk 0:02:58]}  Nge7 {[%clk 0:02:59]} 7. Re1 {[%clk 0:02:58]}  e5 {[%clk 0:02:59]} 8. Nc3 {[%clk 0:02:54]}  d6 {[%clk 0:03:00]} 9. Nd5 {[%clk 0:02:54]}  h6 {[%clk 0:02:59]} 10. c3 {[%clk 0:02:52]}  Be6 {[%clk 0:02:59]} 11. Nd2 {[%clk 0:02:41]}  O-O {[%clk 0:02:58]} 12. a4 {[%clk 0:02:34]}  f5 {[%clk 0:02:58]} 13. Nxe7+ {[%clk 0:02:29]}  Qxe7 {[%clk 0:02:56]} 14. exf5 {[%clk 0:02:12]}  gxf5 {[%clk 0:02:41]} 15. f4 {[%clk 0:02:05]}  Qd7 {[%clk 0:02:40]} 16. Nf3 {[%clk 0:02:01]}  Rad8 {[%clk 0:02:26]} 17. Qe2 {[%clk 0:01:49]}  Qf7 {[%clk 0:02:13]} 18. Qf2 {[%clk 0:01:44]}  c4 {[%clk 0:02:09]} 19. dxc4 {[%clk 0:01:24]}  e4 {[%clk 0:02:05]} 20. Nd2 {[%clk 0:01:19]}  Bxc4 {[%clk 0:01:57]} 21. Nxc4 {[%clk 0:01:17]}  Qxc4 {[%clk 0:01:58]} 22. Be3 {[%clk 0:01:16]}  b6 {[%clk 0:01:55]} 23. Red1 {[%clk 0:01:12]}  Qf7 {[%clk 0:01:49]} 24. Bf1 {[%clk 0:01:07]}  d5 {[%clk 0:01:48]} 25. Bb5 {[%clk 0:01:05]}  Ne7 {[%clk 0:01:45]} 26. a5 {[%clk 0:01:04]}  bxa5 {[%clk 0:01:41]} 27. Rxa5 {[%clk 0:01:04]}  d4 {[%clk 0:01:37]} 28. Bxd4 {[%clk 0:01:04]}  Qb3 {[%clk 0:01:37]} 29. Ba4 {[%clk 0:00:59]}  Qc4 {[%clk 0:01:30]} 30. Bxg7 {[%clk 0:00:57]}  Rxd1+ {[%clk 0:01:27]} 31. Bxd1 {[%clk 0:00:56]}  Kxg7 {[%clk 0:01:27]} 32. Rxa7 {[%clk 0:00:53]}  Rf7 {[%clk 0:00:48]} 33. Be2 {[%clk 0:00:38]}  Qd5 {[%clk 0:00:45]} 34. Bh5 {[%clk 0:00:31]}  Ng6 {[%clk 0:00:33]} 35. Rxf7+ {[%clk 0:00:30]}  Qxf7 {[%clk 0:00:31]} 36. Qd4+ {[%clk 0:00:27]}  Kh7 {[%clk 0:00:31]} 37. Qd6 {[%clk 0:00:25]}  Qa7+ {[%clk 0:00:30]} 38. Kg2 {[%clk 0:00:24]}  Ne7 {[%clk 0:00:29]} 39. Qf6 {[%clk 0:00:19]}  Qd7 {[%clk 0:00:23]} 40. Kh3 {[%clk 0:00:08]}  Qd8 {[%clk 0:00:08]} 41. Qf7+ {[%clk 0:00:07]}  Kh8 {[%clk 0:00:08]} 42. Qf6+ {[%clk 0:00:07]}  Kh7 {[%clk 0:00:07]} 43. Qf7+ {[%clk 0:00:07]}  Kh8 {[%clk 0:00:08]} 44. Qe6 {[%clk 0:00:08]}  Kg7 {[%clk 0:00:07]} 45. b4 {[%clk 0:00:06]}  Qc7 {[%clk 0:00:02]} 46. Qg6+ {[%clk 0:00:00]}  Nxg6 {[%clk 0:00:02]} 0-1


[Site "https://www.chess.com"]

[Event "Titled Tuesday Blitz August 22 Late 2023"]
[White "Bauman_Guy"]
[Black "Postlmayer, Jakob"]
[BlackFideId "1643622"]
[WhiteElo "2801"]
[BlackElo "2611"]
[Result "0-1"]
[Round "8"]
[TimeControl "180+1"]
[Date "2023.08.22"]
[WhiteClock "0:00:27"]
[BlackClock "0:00:04"]
[Board "28"]

1. e4 {[%clk 0:03:00]}  c5 {[%clk 0:02:59]} 2. Nf3 {[%clk 0:03:01]}  e6 {[%clk 0:02:59]} 3. d4 {[%clk 0:03:01]}  cxd4 {[%clk 0:02:59]} 4. Nxd4 {[%clk 0:03:02]}  Nc6 {[%clk 0:02:59]} 5. Nc3 {[%clk 0:03:03]}  Qc7 {[%clk 0:02:59]} 6. g3 {[%clk 0:03:02]}  a6 {[%clk 0:02:58]} 7. Bg2 {[%clk 0:03:03]}  Nf6 {[%clk 0:02:58]} 8. O-O {[%clk 0:03:03]}  Nxd4 {[%clk 0:02:58]} 9. Qxd4 {[%clk 0:03:04]}  Bc5 {[%clk 0:02:58]} 10. Qd3 {[%clk 0:03:04]}  Ng4 {[%clk 0:02:57]} 11. h3 {[%clk 0:03:04]}  Ne5 {[%clk 0:02:56]} 12. Qe2 {[%clk 0:03:04]}  d6 {[%clk 0:02:38]} 13. Be3 {[%clk 0:03:04]}  O-O {[%clk 0:02:34]} 14. Rad1 {[%clk 0:03:03]}  b5 {[%clk 0:02:31]} 15. Bxc5 {[%clk 0:03:02]}  Qxc5 {[%clk 0:02:26]} 16. Kh2 {[%clk 0:03:00]}  Bb7 {[%clk 0:02:21]} 17. Nb1 {[%clk 0:02:57]}  Rfe8 {[%clk 0:02:08]} 18. c3 {[%clk 0:02:56]}  Rad8 {[%clk 0:02:06]} 19. Nd2 {[%clk 0:02:55]}  Qb6 {[%clk 0:01:59]} 20. f4 {[%clk 0:02:55]}  Nc6 {[%clk 0:01:49]} 21. Qf2 {[%clk 0:02:49]}  Qxf2 {[%clk 0:01:48]} 22. Rxf2 {[%clk 0:02:50]}  Ne7 {[%clk 0:01:42]} 23. Nb3 {[%clk 0:02:49]}  Nc8 {[%clk 0:01:25]} 24. Rfd2 {[%clk 0:02:47]}  Kf8 {[%clk 0:01:24]} 25. Nc5 {[%clk 0:02:43]}  Re7 {[%clk 0:01:17]} 26. a4 {[%clk 0:02:40]}  Rc7 {[%clk 0:01:10]} 27. b4 {[%clk 0:02:36]}  bxa4 {[%clk 0:01:06]} 28. Nxa4 {[%clk 0:02:33]}  Re8 {[%clk 0:00:54]} 29. Ra1 {[%clk 0:02:27]}  Ke7 {[%clk 0:00:53]} 30. Ra3 {[%clk 0:02:23]}  Rd8 {[%clk 0:00:48]} 31. Nb2 {[%clk 0:02:20]}  Nb6 {[%clk 0:00:47]} 32. Kg1 {[%clk 0:01:52]}  Rdc8 {[%clk 0:00:45]} 33. Rd3 {[%clk 0:01:52]}  g6 {[%clk 0:00:26]} 34. Kf2 {[%clk 0:01:52]}  e5 {[%clk 0:00:17]} 35. Ke1 {[%clk 0:01:42]}  Nc4 {[%clk 0:00:16]} 36. Nxc4 {[%clk 0:01:34]}  Rxc4 {[%clk 0:00:17]} 37. Re3 {[%clk 0:01:33]}  f5 {[%clk 0:00:17]} 38. fxe5 {[%clk 0:01:28]}  dxe5 {[%clk 0:00:17]} 39. Bf1 {[%clk 0:01:28]}  Rxe4 {[%clk 0:00:15]} 40. Rxe4 {[%clk 0:01:29]}  fxe4 {[%clk 0:00:15]} 41. c4 {[%clk 0:01:25]}  Rd8 {[%clk 0:00:13]} 42. Be2 {[%clk 0:01:17]}  Rd4 {[%clk 0:00:12]} 43. Ra5 {[%clk 0:01:14]}  Kf6 {[%clk 0:00:10]} 44. Kf2 {[%clk 0:01:14]}  Rd2 {[%clk 0:00:09]} 45. Ke3 {[%clk 0:01:14]}  Rb2 {[%clk 0:00:09]} 46. b5 {[%clk 0:01:09]}  Rb3+ {[%clk 0:00:09]} 47. Kd2 {[%clk 0:01:07]}  axb5 {[%clk 0:00:09]} 48. Rxb5 {[%clk 0:01:00]}  Rxb5 {[%clk 0:00:09]} 49. cxb5 {[%clk 0:01:01]}  Ke7 {[%clk 0:00:10]} 50. Bc4 {[%clk 0:00:50]}  Kd6 {[%clk 0:00:09]} 51. Bg8 {[%clk 0:00:50]}  h6 {[%clk 0:00:09]} 52. Bh7 {[%clk 0:00:47]}  g5 {[%clk 0:00:09]} 53. Ke3 {[%clk 0:00:47]}  Kc5 {[%clk 0:00:09]} 54. Bxe4 {[%clk 0:00:47]}  Bc8 {[%clk 0:00:09]} 55. Bf3 {[%clk 0:00:16]}  Kxb5 {[%clk 0:00:09]} 56. h4 {[%clk 0:00:16]}  Kc5 {[%clk 0:00:08]} 57. hxg5 {[%clk 0:00:16]}  hxg5 {[%clk 0:00:09]} 58. Be4 {[%clk 0:00:17]}  Kd6 {[%clk 0:00:09]} 59. Bf3 {[%clk 0:00:17]}  Bf5 {[%clk 0:00:09]} 60. Be2 {[%clk 0:00:17]}  Ke6 {[%clk 0:00:07]} 61. Bf3 {[%clk 0:00:17]}  Kf6 {[%clk 0:00:07]} 62. Be2 {[%clk 0:00:17]}  Bd7 {[%clk 0:00:07]} 63. Bf3 {[%clk 0:00:18]}  Be8 {[%clk 0:00:07]} 64. Be2 {[%clk 0:00:18]}  Bc6 {[%clk 0:00:07]} 65. Bf1 {[%clk 0:00:18]}  Kf5 {[%clk 0:00:07]} 66. Be2 {[%clk 0:00:18]}  Bd5 {[%clk 0:00:06]} 67. Bd1 {[%clk 0:00:18]}  Bb7 {[%clk 0:00:06]} 68. Be2 {[%clk 0:00:19]}  Ke6 {[%clk 0:00:06]} 69. Bd1 {[%clk 0:00:19]}  Bd5 {[%clk 0:00:05]} 70. Bg4+ {[%clk 0:00:19]}  Kd6 {[%clk 0:00:06]} 71. Be2 {[%clk 0:00:20]}  Kc5 {[%clk 0:00:06]} 72. Bg4 {[%clk 0:00:20]}  Kc4 {[%clk 0:00:05]} 73. Be2+ {[%clk 0:00:19]}  Kc3 {[%clk 0:00:05]} 74. Bf1 {[%clk 0:00:19]}  Kc2 {[%clk 0:00:04]} 75. Be2 {[%clk 0:00:20]}  Bc6 {[%clk 0:00:04]} 76. Bg4 {[%clk 0:00:20]}  Kc3 {[%clk 0:00:04]} 77. Bf3 {[%clk 0:00:20]}  Bxf3 {[%clk 0:00:02]} 78. Kxf3 {[%clk 0:00:21]}  Kd3 {[%clk 0:00:03]} 79. Kg4 {[%clk 0:00:21]}  e4 {[%clk 0:00:03]} 80. Kxg5 {[%clk 0:00:22]}  e3 {[%clk 0:00:03]} 81. Kf5 {[%clk 0:00:23]}  e2 {[%clk 0:00:04]} 82. g4 {[%clk 0:00:24]}  e1=Q {[%clk 0:00:05]} 83. g5 {[%clk 0:00:25]}  Qe4+ {[%clk 0:00:05]} 84. Kf6 {[%clk 0:00:25]}  Qf4+ {[%clk 0:00:05]} 85. Kg6 {[%clk 0:00:26]}  Ke4 {[%clk 0:00:05]} 86. Kh5 {[%clk 0:00:27]}  Kf5 {[%clk 0:00:04]} 87. g6 {[%clk 0:00:27]}  Qh2# {[%clk 0:00:04]} 0-1


[Site "https://www.chess.com"]

[Event "Titled Tuesday Blitz August 22 Late 2023"]
[White "Ibadov, Dashgyn"]
[Black "Gorovets, Andrey"]
[WhiteFideId "24107514"]
[BlackFideId "13504037"]
[WhiteElo "2616"]
[BlackElo "2800"]
[Result "0-1"]
[Round "8"]
[TimeControl "180+1"]
[Date "2023.08.22"]
[WhiteClock "0:01:30"]
[BlackClock "0:01:19"]
[Board "29"]

1. e4 {[%clk 0:03:00]}  c5 {[%clk 0:02:58]} 2. Nf3 {[%clk 0:03:00]}  Nc6 {[%clk 0:02:58]} 3. Bb5 {[%clk 0:03:00]}  Nf6 {[%clk 0:02:58]} 4. Nc3 {[%clk 0:02:59]}  Qc7 {[%clk 0:02:57]} 5. O-O {[%clk 0:02:58]}  Nd4 {[%clk 0:02:57]} 6. Re1 {[%clk 0:02:58]}  a6 {[%clk 0:02:57]} 7. Bf1 {[%clk 0:02:58]}  Ng4 {[%clk 0:02:57]} 8. e5 {[%clk 0:02:52]}  h5 {[%clk 0:02:42]} 9. Nxd4 {[%clk 0:02:39]}  cxd4 {[%clk 0:02:43]} 10. Nd5 {[%clk 0:02:40]}  Qc5 {[%clk 0:02:34]} 11. c4 {[%clk 0:02:16]}  dxc3 {[%clk 0:02:34]} 12. Ne3 {[%clk 0:02:13]}  c2 {[%clk 0:02:06]} 13. Qxc2 {[%clk 0:02:10]}  Qxe5 {[%clk 0:01:56]} 14. g3 {[%clk 0:01:59]}  Nf6 {[%clk 0:01:40]} 15. Nf5 {[%clk 0:01:47]}  Qxe1 {[%clk 0:01:36]} 16. b3 {[%clk 0:01:43]}  Qe4 {[%clk 0:01:32]} 17. Bd3 {[%clk 0:01:39]}  Qc6 {[%clk 0:01:32]} 18. Qd1 {[%clk 0:01:30]}  b5 {[%clk 0:01:19]} 0-1


[Site "https://www.chess.com"]